bitfinex/quotes_BTCUSD_20230117
["timestamp","ask_amount","ask_price","bid_price","bid_amount"]
[1673921801247,1.55504665,21011.0,21010.0,0.00059804]
[1673921801978,1.6968358,21011.0,21010.0,0.00059804]
[1673921802221,0.13050196,21010.0,21006.0,0.01779622]
[1673921802469,0.475987,21009.0,21006.0,0.01779622]
[1673921802969,0.66671295,21009.0,21006.0,0.01779622]
[1673921803267,0.475987,21009.0,21006.0,0.01779622]
[1673921804531,0.566987,21009.0,21006.0,0.01779622]
[1673921804786,0.475987,21009.0,21006.0,0.01779622]
[1673921805068,0.566987,21009.0,21006.0,0.01779622]
[1673921805317,0.475987,21009.0,21006.0,0.01779622]
[1673921805585,0.566987,21009.0,21006.0,0.01779622]
[1673921806572,0.091,21009.0,21006.0,0.01779622]
[1673921806898,0.091,21009.0,21008.0,0.2264]
[1673921807087,0.091,21009.0,21008.0,0.5349]
[1673921807591,0.08692,21009.0,21008.0,1.0377716]
[1673921808143,0.08692,21009.0,21008.0,0.0085]
[1673921808359,0.03050196,21010.0,21007.0,0.0085]
[1673921808623,0.044,21009.0,21008.0,0.002]
[1673921808877,0.03050196,21010.0,21007.0,0.0085]
[1673921809132,0.03050196,21010.0,21008.0,0.001]
[1673921809133,0.078,21009.0,21008.0,0.001]
[1673921809399,0.078,21009.0,21007.0,0.0085]
[1673921809631,0.157,21009.0,21008.0,0.001]
[1673921810865,0.079,21009.0,21008.0,0.001]
[1673921811108,0.078,21009.0,21008.0,0.001]
[1673921811365,0.078,21009.0,21007.0,0.0085]
[1673921811619,0.157,21009.0,21008.0,0.001]
[1673921811875,0.27229111,21010.0,21007.0,0.0085]
[1673921812607,0.079,21009.0,21008.0,0.001]
[1673921812854,0.13050196,21010.0,21007.0,0.0085]
[1673921813349,0.27229111,21010.0,21007.0,0.0085]
[1673921813603,0.17229111,21010.0,21007.0,0.0085]
[1673921813855,0.10950196,21010.0,21007.0,0.0095]
[1673921814101,0.10950196,21010.0,21007.0,0.0085]
[1673921814102,0.38497484,21010.0,21007.0,0.0085]
[1673921814357,0.63008131,21009.0,21007.0,0.0085]
[1673921814617,0.14178915,21008.0,21007.0,0.001]
[1673921814864,1.41876404,21009.0,21006.0,0.01779622]
[1673921815109,0.14178915,21008.0,21006.0,0.01779622]
[1673921815608,0.35447288,21008.0,21007.0,0.001]
[1673921815854,0.24178915,21008.0,21007.0,0.001]
[1673921816098,0.45447288,21008.0,21007.0,0.001]
[1673921816345,0.35447288,21008.0,21007.0,0.001]
[1673921816589,0.35447288,21008.0,21007.0,0.0095]
[1673921816837,0.14178915,21008.0,21007.0,0.0095]
[1673921817122,0.35487943,21008.0,21007.0,0.0095]
[1673921817367,0.21268373,21008.0,21007.0,0.0085]
[1673921817615,0.29168373,21008.0,21007.0,0.0085]
[1673921817882,0.39168373,21008.0,21007.0,0.0085]
[1673921818165,0.21268373,21008.0,21007.0,0.0085]
[1673921818378,0.29168373,21008.0,21007.0,0.0095]
[1673921818631,0.46428542,21008.0,21007.0,0.0085]
[1673921818838,0.22126542,21008.0,21007.0,0.0085]
[1673921819081,0.14226542,21008.0,21007.0,0.0085]
[1673921819342,0.49626203,21008.0,21007.0,0.0085]
[1673921819589,0.81828203,21008.0,21007.0,0.0085]
[1673921819835,0.35581957,21008.0,21007.0,0.0085]
[1673921820076,1.32011073,21009.0,21007.0,0.0085]
[1673921820329,0.079,21008.0,21007.0,0.0095]
[1673921821354,0.1728313,21010.0,21007.0,0.0085]
[1673921821592,0.14232934,21009.0,21007.0,0.0085]
[1673921821832,0.079,21008.0,21007.0,0.0095]
[1673921822127,0.35581957,21009.0,21007.0,0.0085]
[1673921822327,0.35581957,21009.0,21007.0,0.0095]
[1673921822573,0.35581957,21009.0,21007.0,0.0085]
[1673921822821,0.044,21008.0,21007.0,0.0105]
[1673921823064,0.52757049,21010.0,21007.0,0.96084827]
[1673921823065,0.38632153,21010.0,21007.0,0.96084827]
[1673921823304,0.22132934,21009.0,21007.0,0.0095]
[1673921823548,0.079,21009.0,21007.0,0.0095]
[1673921824260,0.24232934,21009.0,21007.0,0.0085]
[1673921825013,0.24232934,21009.0,21007.0,0.0095]
[1673921825014,0.80793146,21009.0,21007.0,0.0095]
[1673921825263,0.81908853,21008.0,21007.0,0.0085]
[1673921825777,1.0816073,21008.0,21007.0,0.0085]
[1673921826009,1.39259517,21008.0,21007.0,0.001]
[1673921826268,1.39259517,21008.0,21006.0,0.01779622]
[1673921826269,1.74706805,21008.0,21006.0,0.01779622]
[1673921826503,0.63550555,21007.0,21006.0,0.01779622]
[1673921826748,0.63550555,21007.0,21006.0,0.02629622]
[1673921826749,0.91669784,21007.0,21006.0,0.02629622]
[1673921826986,0.70321229,21007.0,21006.0,0.02629622]
[1673921827234,1.26862404,21007.0,21006.0,0.02629622]
[1673921827493,0.91415116,21007.0,21006.0,0.02629622]
[1673921827739,0.77982617,21007.0,21006.0,0.02729622]
[1673921828215,1.74236287,21007.0,21006.0,0.01779622]
[1673921828504,1.25585717,21007.0,21006.0,0.01879622]
[1673921828709,1.25347105,21007.0,21006.0,0.01879622]
[1673921829204,1.15347105,21007.0,21006.0,0.01879622]
[1673921829442,1.71902431,21007.0,21006.0,0.01879622]
[1673921829694,1.36455143,21007.0,21006.0,0.01879622]
[1673921829998,1.36703605,21007.0,21006.0,0.01879622]
[1673921830724,1.43306285,21007.0,21006.0,0.01879622]
[1673921830959,2.36967665,21007.0,21006.0,0.01120849]
[1673921831206,2.41813239,21007.0,21006.0,0.01120849]
[1673921831709,2.05886453,21007.0,21006.0,0.01120849]
[1673921832196,1.63289166,21007.0,21006.0,0.01120849]
[1673921832436,2.05886453,21007.0,21006.0,0.01120849]
[1673921832686,2.79828715,21007.0,21006.0,0.01120849]
[1673921832922,2.79828715,21007.0,21006.0,0.00444165]
[1673921832923,2.06925952,21007.0,21006.0,0.00444165]
[1673921833166,2.49617248,21007.0,21006.0,0.00444165]
[1673921833430,2.49617042,21007.0,21006.0,0.00444165]
[1673921833683,2.97028419,21007.0,21006.0,0.00444165]
[1673921833928,3.31427681,21007.0,21006.0,0.00444165]
[1673921834170,3.18735289,21007.0,21006.0,0.00444165]
[1673921834415,0.09075375,21006.0,21005.0,0.04342574]
[1673921834658,2.08792881,21006.0,21005.0,0.04342574]
[1673921834917,2.08792881,21006.0,21005.0,0.03842574]
[1673921834918,3.04003681,21006.0,21005.0,0.03842574]
[1673921835159,0.40846736,21005.0,21001.0,0.01848843]
[1673921835410,0.4980804,21002.0,21001.0,0.01848843]
[1673921835656,1.48778903,21002.0,21001.0,0.01848843]
[1673921836462,1.6299901,21002.0,21001.0,0.01848843]
[1673921836707,1.88510181,21002.0,21001.0,0.01848843]
[1673921836951,2.11545726,21002.0,21001.0,0.01848843]
[1673921837482,1.863143,21002.0,21001.0,0.01848843]
[1673921838977,1.57852563,21002.0,21001.0,0.01848843]
[1673921839211,1.72063676,21002.0,21001.0,0.01848843]
[1673921839458,1.72064936,21002.0,21001.0,0.01848843]
[1673921839695,2.57497721,21002.0,21001.0,0.01848843]
[1673921839940,2.85959458,21002.0,21001.0,0.01848843]
[1673921840182,2.05572732,21002.0,21001.0,0.01848843]
[1673921840428,0.798181,21002.0,21001.0,0.01848843]
[1673921840931,0.98770727,21003.0,21001.0,0.01848843]
[1673921841171,0.091,21002.0,21001.0,0.01848843]
[1673921842149,1.12981035,21003.0,21001.0,0.01848843]
[1673921842424,0.091,21002.0,21001.0,0.01848843]
[1673921842668,0.1,21002.0,21001.0,0.01848843]
[1673921842913,0.988181,21002.0,21001.0,0.01848843]
[1673921843684,1.34348371,21002.0,21001.0,0.01848843]
[1673921843928,1.13028408,21002.0,21001.0,0.01848843]
[1673921844170,1.34348371,21002.0,21001.0,0.01848843]
[1673921844408,1.13028408,21002.0,21001.0,0.01848843]
[1673921844670,1.34348371,21002.0,21001.0,0.01848843]
[1673921845180,0.798181,21002.0,21001.0,0.01848843]
[1673921845419,0.889181,21002.0,21001.0,0.01848843]
[1673921845661,0.798181,21002.0,21001.0,0.01848843]
[1673921846154,1.03128408,21002.0,21001.0,0.01848843]
[1673921847158,0.889181,21002.0,21001.0,0.01848843]
[1673921847396,1.03128408,21002.0,21001.0,0.01848843]
[1673921847901,0.889181,21002.0,21001.0,0.01848843]
[1673921848146,0.567145,21002.0,21001.0,0.01848843]
[1673921849645,1.03128408,21002.0,21001.0,0.01848843]
[1673921849894,0.413036,21002.0,21001.0,0.01848843]
[1673921850148,0.091,21002.0,21001.0,0.01848843]
[1673921850392,0.091,21002.0,21001.0,0.02698843]
[1673921850652,0.091,21002.0,21001.0,0.03662443]
[1673921850887,0.091,21002.0,21001.0,0.11372443]
[1673921850888,0.086,21002.0,21001.0,0.11372443]
[1673921851132,0.086,21002.0,21001.0,0.58989143]
[1673921851395,0.086,21002.0,21001.0,1.84243191]
[1673921851638,0.086,21002.0,21001.0,0.88989143]
[1673921851885,0.086,21002.0,21001.0,0.41372443]
[1673921852377,0.086,21002.0,21001.0,0.11372443]
[1673921852666,0.008,21002.0,21001.0,0.42672443]
[1673921852916,0.008,21002.0,21001.0,0.42671943]
[1673921855165,0.008,21002.0,21001.0,0.90118643]
[1673921855397,0.008,21002.0,21001.0,1.93070504]
[1673921855656,0.00561376,21002.0,21001.0,1.93070504]
[1673921856608,0.00322707,21002.0,21001.0,1.93070504]
[1673921857831,0.00084095,21002.0,21001.0,1.93070504]
[1673921858876,0.58427475,21007.0,21001.0,1.93070504]
[1673921859101,0.7750007,21007.0,21005.0,0.0764]
[1673921859354,0.58427475,21007.0,21005.0,0.0764]
[1673921859857,0.58188907,21007.0,21005.0,0.0764]
[1673921860605,0.79270258,21007.0,21005.0,0.0764]
[1673921860865,0.57950295,21007.0,21005.0,0.0764]
[1673921861117,0.65050295,21007.0,21005.0,0.0764]
[1673921861395,0.43739987,21007.0,21005.0,0.0764]
[1673921861611,0.50601375,21007.0,21005.0,0.0784]
[1673921861845,0.43501375,21007.0,21005.0,0.0764]
[1673921862083,0.50601375,21007.0,21005.0,0.0784]
[1673921862351,0.43501375,21007.0,21006.0,0.009621]
[1673921862599,0.50501375,21007.0,21005.0,0.0784]
[1673921863099,0.64711683,21007.0,21005.0,0.0784]
[1673921863575,0.64711683,21007.0,21005.0,0.002]
[1673921863818,0.64473071,21007.0,21005.0,0.002]
[1673921864798,0.64234459,21007.0,21005.0,0.002]
[1673921865794,0.50024151,21007.0,21005.0,0.01162]
[1673921866286,0.07,21007.0,21005.0,0.08872]
[1673921866549,0.07,21007.0,21006.0,0.08881]
[1673921866798,0.07,21007.0,21006.0,0.098431]
[1673921866799,0.06761388,21007.0,21006.0,0.098431]
[1673921867059,0.06761388,21007.0,21006.0,0.950885]
[1673921867329,0.06761388,21007.0,21006.0,0.727885]
[1673921867578,0.17260504,21010.0,21006.0,1.027885]
[1673921867838,0.03050196,21010.0,21007.0,0.3]
[1673921868084,0.03050196,21010.0,21008.0,0.018114]
[1673921868326,0.03050196,21010.0,21009.0,0.08031]
[1673921868583,0.03050196,21010.0,21009.0,0.08881]
[1673921868847,0.09711618,21010.0,21009.0,0.08881]
[1673921869109,0.17021926,21010.0,21009.0,0.0085]
[1673921869359,0.17021926,21010.0,21009.0,0.002]
[1673921869360,0.09711618,21010.0,21009.0,0.002]
[1673921869605,0.23921926,21010.0,21009.0,0.002]
[1673921869866,0.0947304,21010.0,21009.0,0.002]
[1673921870133,0.45003311,21010.0,21009.0,0.002]
[1673921870372,0.55003311,21010.0,21009.0,0.002]
[1673921870866,0.45003311,21010.0,21009.0,0.002]
[1673921871133,0.38103311,21010.0,21007.0,0.0085]
[1673921871368,0.25683348,21010.0,21007.0,0.0085]
[1673921871614,0.1147304,21010.0,21007.0,0.0085]
[1673921871858,0.34583348,21010.0,21007.0,0.0085]
[1673921872352,0.16783348,21010.0,21007.0,0.0085]
[1673921872601,0.0257304,21010.0,21007.0,0.0085]
[1673921872853,0.0257304,21010.0,21008.0,0.086713]
[1673921873091,0.0257304,21010.0,21009.0,0.08881]
[1673921873365,0.1147304,21010.0,21009.0,0.098421]
[1673921873605,0.02334462,21010.0,21009.0,0.098421]
[1673921873854,0.11234462,21010.0,21009.0,0.098421]
[1673921874352,0.20134462,21010.0,21009.0,0.098421]
[1673921874609,0.02334462,21010.0,21009.0,0.018111]
[1673921874853,0.04295884,21010.0,21009.0,0.018111]
[1673921875097,0.04295884,21010.0,21009.0,0.0085]
[1673921875351,0.04295884,21010.0,21008.0,0.0085]
[1673921875609,0.04057306,21010.0,21008.0,0.0085]
[1673921875849,0.04057306,21010.0,21007.0,0.3085]
[1673921876093,0.04057306,21010.0,21008.0,0.00961]
[1673921876349,0.01857306,21010.0,21009.0,0.0085]
[1673921876590,0.04057306,21010.0,21009.0,0.0085]
[1673921876839,0.03818728,21010.0,21008.0,0.0085]
[1673921877346,0.01618728,21010.0,21008.0,0.0085]
[1673921877597,0.0358015,21010.0,21009.0,0.089921]
[1673921877842,0.0138015,21010.0,21009.0,0.08881]
[1673921878101,0.0358015,21010.0,21009.0,0.098419]
[1673921878354,0.0358015,21010.0,21009.0,0.08881]
[1673921878606,0.0358015,21010.0,21009.0,0.08031]
[1673921878866,0.03341572,21010.0,21009.0,0.089919]
[1673921879130,0.03341572,21010.0,21009.0,0.09050344]
[1673921879377,0.01141572,21010.0,21009.0,0.08089444]
[1673921879622,0.02155104,21010.0,21009.0,0.08089444]
[1673921879866,0.02155104,21010.0,21007.0,0.3]
[1673921880109,0.02155104,21010.0,21008.0,0.0085]
[1673921880373,0.02155104,21010.0,21009.0,0.089919]
[1673921880624,0.01916526,21010.0,21009.0,0.175519]
[1673921880868,0.00398972,21011.0,21009.0,1.028205]
[1673921881115,0.00398972,21011.0,21010.0,0.26551]
[1673921881360,0.00398972,21011.0,21010.0,1.05108]
[1673921881867,0.00160439,21011.0,21010.0,1.17605328]
[1673921882891,0.00160439,21011.0,21010.0,2.12811175]
[1673921883142,0.00320901,21012.0,21011.0,0.1]
[1673921883389,0.00320901,21012.0,21011.0,1.513482]
[1673921883635,0.00320901,21012.0,21011.0,1.57095828]
[1673921883877,0.00082413,21012.0,21011.0,1.57095828]
[1673921884126,0.00982413,21012.0,21011.0,1.57895828]
[1673921884877,0.00743903,21012.0,21011.0,1.57895828]
[1673921885160,0.00743903,21012.0,21011.0,1.40255828]
[1673921885627,0.00505381,21012.0,21011.0,1.40255828]
[1673921885897,0.00505381,21012.0,21011.0,0.870244]
[1673921886383,0.00505381,21012.0,21011.0,0.87082838]
[1673921886893,0.00266859,21012.0,21011.0,0.87082838]
[1673921887657,0.00108612,21012.0,21011.0,0.87082838]
[1673921887900,0.00108612,21012.0,21011.0,0.87932838]
[1673921888397,0.00108612,21012.0,21011.0,1.83140571]
[1673921888669,0.00108612,21012.0,21011.0,1.83140546]
[1673921888893,0.00269074,21015.0,21011.0,1.83140546]
[1673921889161,0.00269074,21015.0,21013.0,0.0771]
[1673921889423,0.00269074,21015.0,21014.0,0.0085]
[1673921889690,0.00269074,21015.0,21014.0,0.398404]
[1673921889691,0.00030552,21015.0,21014.0,0.398404]
[1673921889958,0.00030552,21015.0,21014.0,0.874277]
[1673921890247,0.07430552,21015.0,21014.0,0.874277]
[1673921890453,0.00030552,21015.0,21014.0,0.874277]
[1673921890696,0.00416859,21016.0,21014.0,0.874277]
[1673921890697,0.00208901,21016.0,21014.0,0.874277]
[1673921890974,0.074,21015.0,21014.0,0.866683]
[1673921891230,0.074,21015.0,21014.0,2.05309549]
[1673921891746,0.00208901,21016.0,21015.0,0.0767]
[1673921892010,0.00208901,21016.0,21015.0,1.11414721]
[1673921892011,0.07708901,21016.0,21015.0,1.11414721]
[1673921892268,0.07708901,21016.0,21015.0,1.42349]
[1673921892535,0.00208901,21016.0,21015.0,0.49394]
[1673921893053,0.07008901,21016.0,21015.0,0.57362427]
[1673921893301,0.00208901,21016.0,21015.0,1.52359423]
[1673921893553,0.00808901,21016.0,21015.0,1.62369423]
[1673921893832,0.00570436,21016.0,21015.0,1.62369423]
[1673921894114,0.00570436,21016.0,21015.0,1.92369423]
[1673921894312,0.00570436,21016.0,21015.0,1.84659423]
[1673921894826,0.00331948,21016.0,21015.0,1.84659423]
[1673921895340,0.00331948,21016.0,21015.0,1.92299423]
[1673921895615,0.0029787,21016.0,21015.0,1.97086751]
[1673921896636,0.0022525,21016.0,21015.0,1.97086751]
[1673921897858,0.00091267,21016.0,21015.0,1.94786751]
[1673921898103,0.001,21016.0,21015.0,2.02686751]
[1673921898366,0.00453391,21018.0,21016.0,0.00063934]
[1673921898617,0.00214915,21018.0,21017.0,1.39906996]
[1673921898900,0.00214915,21018.0,21017.0,2.94741552]
[1673921899202,0.00214915,21018.0,21017.0,2.89954224]
[1673921899900,0.00214915,21018.0,21017.0,1.92166396]
[1673921900654,0.00314915,21018.0,21017.0,2.00166396]
[1673921901429,0.00314915,21018.0,21017.0,2.42663724]
[1673921902909,0.00416859,21019.0,21018.0,0.1767]
[1673921903156,0.00416859,21019.0,21018.0,1.51386996]
[1673921903429,0.00416859,21019.0,21018.0,2.04710524]
[1673921903670,0.00416859,21019.0,21018.0,2.34010524]
[1673921903973,0.00453391,21020.0,21019.0,0.00416]
[1673921904201,0.00453391,21020.0,21019.0,1.04493996]
[1673921904422,0.00453391,21020.0,21019.0,2.50760924]
[1673921905403,0.00453391,21020.0,21019.0,2.59960924]
[1673921906170,0.00453391,21020.0,21019.0,2.2231748]
[1673921906171,0.19525986,21020.0,21019.0,2.2231748]
[1673921906434,0.19525986,21020.0,21019.0,2.1338148]
[1673921906679,0.00453391,21020.0,21019.0,2.08594152]
[1673921907926,0.00453391,21020.0,21019.0,2.09444152]
[1673921908416,0.00453391,21020.0,21019.0,2.47154152]
[1673921908661,0.00453391,21020.0,21019.0,2.5194148]
[1673921910440,0.00453391,21020.0,21019.0,2.2194148]
[1673921910697,0.00453391,21020.0,21019.0,2.09444152]
[1673921913240,0.00453391,21020.0,21019.0,2.39444152]
[1673921916472,0.00453391,21020.0,21019.0,1.53780596]
[1673921916718,0.00453391,21020.0,21019.0,1.05246996]
[1673921917244,0.00453391,21020.0,21019.0,1.53780596]
[1673921917745,0.00453391,21020.0,21019.0,1.55540587]
[1673921918246,0.00453391,21020.0,21019.0,1.85540587]
[1673921920262,0.00453391,21020.0,21019.0,1.85617346]
[1673921921303,0.00453391,21020.0,21019.0,1.85540587]
[1673921924795,0.00453391,21020.0,21019.0,1.37964587]
[1673921925006,0.00453391,21020.0,21019.0,1.37114587]
[1673921928596,0.19525986,21020.0,21019.0,1.06156987]
[1673921928810,0.08163391,21020.0,21019.0,1.06156987]
[1673921929035,0.54577299,21020.0,21019.0,0.10959991]
[1673921929516,0.75897262,21020.0,21019.0,0.10959991]
[1673921929778,1.81739649,21020.0,21019.0,0.10959991]
[1673921929975,1.71739649,21020.0,21019.0,0.10959991]
[1673921930191,1.1640061,21020.0,21019.0,0.10959991]
[1673921930415,0.54596435,21020.0,21019.0,0.01759991]
[1673921930646,0.54596435,21020.0,21019.0,0.02359991]
[1673921930912,0.55696435,21020.0,21019.0,0.02359991]
[1673921931309,0.23492835,21020.0,21019.0,0.02359991]
[1673921931796,0.77040601,21020.0,21019.0,0.02359991]
[1673921932053,0.55696435,21020.0,21019.0,0.02359991]
[1673921932304,0.23492835,21020.0,21019.0,0.02359991]
[1673921933068,0.55696435,21020.0,21019.0,0.02359991]
[1673921933327,0.77040601,21020.0,21019.0,0.02359991]
[1673921934352,0.6992691,21020.0,21019.0,0.02359991]
[1673921934626,1.25255046,21020.0,21019.0,0.02359991]
[1673921934840,1.72828428,21020.0,21019.0,0.02359991]
[1673921935339,1.72828428,21020.0,21019.0,0.01543363]
[1673921935340,1.44368827,21020.0,21019.0,0.01543363]
[1673921936344,1.72817726,21020.0,21019.0,0.01543363]
[1673921936847,1.72819245,21020.0,21019.0,0.01543363]
[1673921937132,1.44368827,21020.0,21019.0,0.01543363]
[1673921937349,1.7281476,21020.0,21019.0,0.01543363]
[1673921938330,1.44368827,21020.0,21019.0,0.01543363]
[1673921939333,1.72800755,21020.0,21019.0,0.01543363]
[1673921940580,1.37223584,21020.0,21019.0,0.01543363]
[1673921940824,1.17472619,21020.0,21019.0,0.01543363]
[1673921941070,1.17463506,21020.0,21019.0,0.01543363]
[1673921941295,1.3878536,21020.0,21019.0,0.01543363]
[1673921941543,1.10353432,21020.0,21019.0,0.01543363]
[1673921942269,1.3878536,21020.0,21019.0,0.01543363]
[1673921943605,0.01544278,21020.0,21019.0,0.01543363]
[1673921945897,0.01544278,21020.0,21019.0,0.02393363]
[1673921946139,0.01544278,21020.0,21019.0,0.33350963]
[1673921946643,0.01544278,21020.0,21019.0,0.80926963]
[1673921946913,0.01544278,21020.0,21019.0,0.85714291]
[1673921947171,0.01544278,21020.0,21019.0,0.80926963]
[1673921947411,0.00444278,21020.0,21019.0,0.80326963]
[1673921947665,0.01144278,21020.0,21019.0,0.80526963]
[1673921947929,0.00444278,21020.0,21019.0,0.80326963]
[1673921948184,0.00444278,21020.0,21019.0,0.89026963]
[1673921948428,0.00444278,21020.0,21019.0,0.80326963]
[1673921948678,0.00444278,21020.0,21019.0,0.89026963]
[1673921949682,0.00444278,21020.0,21019.0,0.80326963]
[1673921950174,0.00444278,21020.0,21019.0,1.16059646]
[1673921950424,0.00444278,21020.0,21019.0,1.30846974]
[1673921950665,0.00444278,21020.0,21019.0,2.35114189]
[1673921950911,0.00444278,21020.0,21019.0,2.26014189]
[1673921951174,0.00444278,21020.0,21019.0,2.35114189]
[1673921951423,0.00444278,21020.0,21019.0,2.26014189]
[1673921951691,0.00444278,21020.0,21019.0,2.35214189]
[1673921952451,0.00444278,21020.0,21019.0,2.26014189]
[1673921952950,0.00444278,21020.0,21019.0,2.35214189]
[1673921953466,0.00444278,21020.0,21019.0,1.40046974]
[1673921953700,0.00444278,21020.0,21019.0,1.12024291]
[1673921953948,0.00444278,21020.0,21019.0,1.02024291]
[1673921956175,0.00444278,21020.0,21019.0,2.32840657]
[1673921956433,0.00475046,21021.0,21020.0,0.10290986]
[1673921956684,0.00475046,21021.0,21020.0,1.65686406]
[1673921956936,0.00475046,21021.0,21020.0,2.88627434]
[1673921957182,0.00475046,21021.0,21020.0,2.60649518]
[1673921957439,0.00475046,21021.0,21020.0,1.57774014]
[1673921958162,0.00475046,21021.0,21020.0,1.66974014]
[1673921958915,0.00475046,21021.0,21020.0,1.52186686]
[1673921959412,0.00475046,21021.0,21020.0,1.44476686]
[1673921959665,0.00475046,21021.0,21020.0,1.05595686]
[1673921960960,0.00475046,21021.0,21020.0,1.06445686]
[1673921961705,0.00475046,21021.0,21020.0,1.36445686]
[1673921961978,0.00475046,21021.0,21020.0,1.06445686]
[1673921963195,0.00475046,21021.0,21020.0,1.36445686]
[1673921963695,0.00475046,21021.0,21020.0,1.7214411]
[1673921963954,0.00475046,21021.0,21020.0,1.76931438]
[1673921964228,0.00475046,21021.0,21020.0,2.72090519]
[1673921964512,0.00475046,21021.0,21020.0,1.76931438]
[1673921964758,0.00475046,21021.0,21020.0,1.7214411]
[1673921966050,0.00475046,21021.0,21020.0,2.6730075]
[1673921967704,0.00475046,21021.0,21020.0,1.44145686]
[1673921968203,0.00475046,21021.0,21020.0,2.3930087]
[1673921968453,0.00475046,21021.0,21020.0,2.67233518]
[1673921968943,0.00475046,21021.0,21020.0,2.72020846]
[1673921969205,0.00475046,21021.0,21020.0,2.62820846]
[1673921969454,0.00475046,21021.0,21020.0,2.72020846]
[1673921969948,0.00475046,21021.0,21020.0,2.67233518]
[1673921972434,0.00475046,21021.0,21020.0,2.67362601]
[1673921974476,0.00475046,21021.0,21020.0,2.3930087]
[1673921974692,0.00475046,21021.0,21020.0,2.67869101]
[1673921974979,0.00475046,21021.0,21020.0,2.67867489]
[1673921975237,0.00475046,21021.0,21020.0,2.3930087]
[1673921975976,0.00475046,21021.0,21020.0,2.44088198]
[1673921976237,0.00475046,21021.0,21020.0,2.64948611]
[1673921976492,0.00475046,21021.0,21020.0,2.72658611]
[1673921976734,0.00578836,21024.0,21022.0,0.1]
[1673921976989,0.00578836,21024.0,21023.0,0.0085]
[1673921977242,0.00578836,21024.0,21023.0,1.445071]
[1673921977494,0.00578836,21024.0,21023.0,1.745071]
[1673921977998,0.00578836,21024.0,21023.0,1.837071]
[1673921978257,0.00578836,21024.0,21023.0,1.914171]
[1673921978771,0.00578836,21024.0,21023.0,0.585733]
[1673921979018,0.19651431,21024.0,21023.0,0.101564]
[1673921979267,0.00578836,21024.0,21023.0,0.092]
[1673921980022,0.00578836,21024.0,21023.0,0.101563]
[1673921980776,0.00578836,21024.0,21023.0,0.392]
[1673921980998,0.00578836,21024.0,21023.0,0.401563]
[1673921982726,0.00578836,21024.0,21023.0,0.092]
[1673921983737,0.00578836,21024.0,21023.0,0.101563]
[1673921984242,0.00578836,21024.0,21023.0,0.392]
[1673921984976,0.00578836,21024.0,21023.0,0.401563]
[1673921985708,0.00578836,21024.0,21023.0,0.392]
[1673921986197,0.00578836,21024.0,21023.0,0.401563]
[1673921986442,0.00578836,21024.0,21023.0,0.392]
[1673921986678,0.00578836,21024.0,21023.0,0.401563]
[1673921986918,0.00578836,21024.0,21023.0,0.392]
[1673921987199,0.00578836,21024.0,21023.0,0.401563]
[1673921990264,0.14789219,21024.0,21023.0,0.401563]
[1673921991651,0.14789219,21024.0,21023.0,0.392]
[1673921991890,0.14789219,21024.0,21023.0,0.401563]
[1673921992357,0.14789219,21024.0,21023.0,0.392]
[1673921993998,0.00578836,21024.0,21023.0,0.877232]
[1673921994241,0.00578836,21024.0,21023.0,1.83730268]
[1673922000328,0.00566954,21024.0,21023.0,2.12732877]
[1673922000574,0.00566954,21024.0,21023.0,3.05341543]
[1673922001087,0.00566954,21024.0,21023.0,3.38627009]
[1673922001583,0.00566954,21024.0,21023.0,3.29427009]
[1673922001832,0.00666954,21024.0,21023.0,3.10929039]
[1673922002070,0.00666954,21024.0,21023.0,3.39428641]
[1673922002316,0.00666954,21024.0,21023.0,3.10929039]
[1673922002569,0.00566954,21024.0,21023.0,3.02529039]
[1673922002805,0.00666954,21024.0,21023.0,3.39423672]
[1673922003045,0.00566954,21024.0,21023.0,3.02529039]
[1673922003290,0.00666954,21024.0,21023.0,3.10929039]
[1673922003548,0.00566954,21024.0,21023.0,3.31023599]
[1673922004598,0.00666954,21024.0,21023.0,3.39423599]
[1673922005100,0.00666954,21024.0,21023.0,3.34636271]
[1673922005334,0.00666954,21024.0,21023.0,2.92281692]
[1673922005587,0.00666954,21024.0,21023.0,1.54530436]
[1673922008048,0.00666954,21024.0,21023.0,1.84530436]
[1673922009801,0.00666954,21024.0,21023.0,1.98774223]
[1673922010050,0.00666954,21024.0,21023.0,2.9406439]
[1673922010306,0.00666954,21024.0,21023.0,2.89277062]
[1673922010582,0.00666954,21024.0,21023.0,2.60782502]
[1673922010834,0.00666954,21024.0,21023.0,3.04107383]
[1673922011077,0.00494992,21025.0,21024.0,0.1042967]
[1673922011315,0.00494992,21025.0,21024.0,3.7422641]
[1673922011596,0.00494992,21025.0,21024.0,3.4438013]
[1673922011832,0.00494992,21025.0,21024.0,3.23590268]
[1673922012570,0.00594992,21025.0,21024.0,3.52842653]
[1673922012837,0.00494992,21025.0,21024.0,3.16470967]
[1673922013080,0.00494992,21025.0,21024.0,3.40155325]
[1673922013323,0.00494992,21025.0,21024.0,3.11683639]
[1673922014072,0.00594992,21025.0,21024.0,3.48055325]
[1673922014312,0.00494992,21025.0,21024.0,3.40144763]
[1673922014552,0.00594992,21025.0,21024.0,3.48044763]
[1673922014785,0.00594992,21025.0,21024.0,3.24360405]
[1673922015031,0.00594992,21025.0,21024.0,3.38585547]
[1673922015319,0.00594992,21025.0,21024.0,4.0055226]
[1673922015573,0.00594992,21025.0,21024.0,4.14800045]
[1673922015817,0.00594992,21025.0,21024.0,3.86328359]
[1673922016058,0.00594992,21025.0,21024.0,4.09986088]
[1673922016538,0.00594992,21025.0,21024.0,3.95724588]
[1673922016776,0.00594992,21025.0,21024.0,4.09986088]
[1673922017036,0.00594992,21025.0,21024.0,3.81541031]
[1673922017284,0.00594992,21025.0,21024.0,3.89241031]
[1673922017537,0.00594992,21025.0,21024.0,3.53651423]
[1673922017782,0.00594992,21025.0,21024.0,3.83001423]
[1673922018267,0.00599386,21027.0,21024.0,3.83001423]
[1673922018520,0.00599386,21027.0,21026.0,0.89319032]
[1673922018779,0.00599386,21027.0,21026.0,4.27472774]
[1673922019114,0.00599386,21027.0,21026.0,4.28322713]
[1673922019279,0.00599386,21027.0,21026.0,4.27575715]
[1673922019774,0.00699386,21027.0,21026.0,3.70147709]
[1673922020025,0.00699386,21027.0,21026.0,2.85282668]
[1673922021005,0.00699386,21027.0,21026.0,2.90069996]
[1673922021253,0.00699386,21027.0,21026.0,1.94912928]
[1673922021503,0.00699386,21027.0,21026.0,1.56422928]
[1673922021756,0.00699386,21027.0,21026.0,1.07907528]
[1673922022761,0.00699386,21027.0,21026.0,1.08757528]
[1673922023274,0.00699386,21027.0,21026.0,1.09712828]
[1673922023774,0.00699386,21027.0,21026.0,1.39712828]
[1673922024028,0.00699386,21027.0,21026.0,1.349255]